[Event "Israel National League 2024"]
[Site "Israel"]
[Date "2024.01.19"]
[Round "3.18"]
[White "Shvayger, Yuliya"]
[Black "Kaspi, Alexander"]
[Result "1/2-1/2"]
[ECO "B91"]
[WhiteElo "2350"]
[BlackElo "2375"]
[Annotator "RC"]
[PlyCount "218"]
[EventDate "2024.01.07"]
[EventType "team-tourn"]
[EventCountry "ISR"]
[SourceTitle "playchess.com"]
[Source "ChessBase"]
[SourceQuality "1"]
[TimeControl "40/5400+30:1800+30"]

1. e4 {[%emt 0:00:05]} c5 {[%emt 0:00:13]} 2. Nf3 {[%emt 0:00:05]} d6 {[%emt 0:00:06]} 3. d4 {[%emt 0:01:05]} cxd4 {[%emt 0:01:44]} 4. Nxd4 {[%emt 0:00:13]} Nf6 {[%emt 0:00:07]} 5. Nc3 {[%emt 0:00:06]} a6 {[%emt 0:00:06]} 6. g3 {[%emt 0:00:47]} e5 {[%emt 0:01:49]} 7. Nb3 {[%emt 0:01:35]} Be6 {[%emt 0:02:22]} 8. Bg2 {[%emt 0:00:59]} Nbd7 {[%emt 0:00:48]} 9. a4 {[%emt 0:02:58]} Be7 {[%emt 0:04:02]} 10. O-O {[%emt 0:01:17]} O-O {[%emt 0:00:35]} 11. Re1 {[%emt 0:02:23]} Rc8 {[%emt 0:02:15]} 12. Nd2 {[%emt 0:04:22]} Rxc3 {[%emt 0:04:31]} 13. bxc3 {[%emt 0:00:18]} Qc7 {[%emt 0:00:05]} 14. Nb3 {[%emt 0:11:17]} Qxc3 {[%emt 0:03:46]} 15. Bd2 {[%emt 0:03:14]} Qc7 {[%emt 0:00:58]} 16. Bb4 {[%emt 0:08:38]} Rd8 {[%emt 0:01:39]} 17. Rc1 {[%emt 0:04:11]} Nb8 {[%emt 0:03:36]} 18. c4 {[%emt 0:04:56]} Nc6 {[%emt 0:01:13]} 19. Bd2 {[%emt 0:01:21]} Nd7 {[%emt 0:00:32]} 20. a5 {[%emt 0:10:52]} Nc5 {[%emt 0:01:01]} 21. Bf1 {[%emt 0:00:10]} Bg4 {[%emt 0:03:47]} 22. Qxg4 {[%emt 0:01:10]} Nxb3 {[%emt 0:00:10]} 23. Bh6 {[%emt 0:03:20]} Bf8 {[%emt 0:01:32]} 24. Rb1 {[%emt 0:00:51]} Ncxa5 {[%emt 0:00:56]} 25. Be3 {[%emt 0:02:49]} Nd4 {[%emt 0:04:50]} 26. Bxd4 {[%emt 0:01:11]} exd4 {[%emt 0:01:17]} 27. Qd1 {[%emt 0:00:20]} Qc5 {[%emt 0:04:34]} 28. Qa4 {[%emt 0:03:31]} Rb8 {[%emt 0:07:24]} 29. Bd3 {[%emt 0:03:03]} g6 {[%emt 0:02:06]} 30. f4 {[%emt 0:00:35]} Nc6 {[%emt 0:03:16]} 31. Re2 {[%emt 0:02:52]} Be7 {[%emt 0:10:56]} 32. Reb2 {[%emt 0:00:30]} Qa5 {[%emt 0:05:21]} 33. Qxa5 {[%emt 0:03:35]} Nxa5 {[%emt 0:00:16]} 34. Rb6 {[%emt 0:01:43]} Rc8 {[%emt 0:00:14]} 35. Ra1 {[%emt 0:01:18]} Rc5 {[%emt 0:00:11]} 36. Bf1 {[%emt 0:00:13]} Kf8 {[%emt 0:00:30]} 37. Rd1 {[%emt 0:03:07]} Rc6 {[%emt 0:08:40]} 38. Rxc6 {[%emt 0:02:27]} Nxc6 {[%emt 0:03:37]} 39. Rb1 {[%emt 0:00:24]} Na5 {[%emt 0:01:36]} 40. Kf2 {[%emt 0:09:56]} Ke8 {[%emt 0:00:37]} 41. Ke2 {[%emt 0:31:10]} Kd8 {[%emt 0:30:49]} 42. Kd3 {[%emt 0:00:08]} Bf6 {[%emt 0:00:07]} 43. Bg2 {[%emt 0:00:00]} Kc7 {[%emt 0:00:00]} 44. e5 {[%emt 0:00:00]} dxe5 {[%emt 0:00:00]} 45. Bd5 {[%emt 0:00:00]} exf4 {[%emt 0:00:00]} 46. gxf4 {[%emt 0:00:00]} b6 {[%emt 0:00:00]} 47. c5 {[%emt 0:00:00]} bxc5 {[%emt 0:00:00]} 48. Ra1 {[%emt 0:00:00]} c4+ {[%emt 0:00:00]} 49. Bxc4 {[%emt 0:00:00]} Nb7 {[%emt 0:00:00]} 50. Bxf7 {[%emt 0:00:00]} a5 {[%emt 0:00:00]} 51. Bd5 {[%emt 0:00:00]} Nc5+ {[%emt 0:00:00]} 52. Kc4 {[%emt 0:00:00]} Nd7 {[%emt 0:04:21]} 53. Rxa5 {[%emt 0:00:00]} Nb6+ {[%emt 0:00:05]} 54. Kd3 {[%emt 0:00:00]} Nxd5 {[%emt 0:00:07]} 55. Rxd5 {[%emt 0:00:00]} h6 {[%emt 0:00:07]} 56. Ke4 {[%emt 0:00:14]} Kc6 {[%emt 0:00:58]} 57. h3 {[%emt 0:05:14]} Kc7 {[%emt 0:04:19]} 58. Ra5 {[%emt 0:05:02]} Kd6 {[%emt 0:00:17]} 59. Ra3 {[%emt 0:01:27]} Ke6 {[%emt 0:00:36]} 60. Rg3 {[%emt 0:00:26]} Kf7 {[%emt 0:00:29]} 61. Kd5 {[%emt 0:00:08]} Bh4 {[%emt 0:03:22]} 62. Ra3 {[%emt 0:00:18]} Bf2 {[%emt 0:01:51]} 63. Ke5 {[%emt 0:01:01]} Be3 {[%emt 0:00:06]} 64. Ra7+ {[%emt 0:00:18]} Ke8 {[%emt 0:01:29]} 65. Ke6 {[%emt 0:02:07]} Kd8 {[%emt 0:02:22]} 66. Rd7+ {[%emt 0:00:15]} Ke8 {[%emt 0:00:08]} 67. Rg7 {[%emt 0:01:08]} Kd8 {[%emt 0:05:59]} 68. Ke5 {[%emt 0:00:26]} d3 {[%emt 0:00:42]} 69. Rxg6 {[%emt 0:00:20]} Kc7 {[%emt 0:00:28]} 70. Ra6 {[%emt 0:00:44]} Bc1 {[%emt 0:00:19]} 71. Ra5 {[%emt 0:00:55]} Kc6 {[%emt 0:00:04]} 72. f5 {[%emt 0:00:12]} d2 {[%emt 0:01:48]} 73. Rd5 {[%emt 0:00:05]} Bb2+ {[%emt 0:00:47]} 74. Ke6 {[%emt 0:00:30]} Bc3 {[%emt 0:00:04]} 75. Rd8 {[%emt 0:00:36]} Kc5 {[%emt 0:00:28]} 76. f6 {[%emt 0:01:03]} Bd4 {[%emt 0:00:26]} 77. f7 {[%emt 0:00:13]} d1=Q {[%emt 0:00:12]} 78. f8=Q+ {[%emt 0:00:05]} Kc4 {[%emt 0:00:08]} 79. Rc8+ {[%emt 0:00:15]} Kd3 {[%emt 0:00:17]} 80. Qf5+ {[%emt 0:01:17]} Ke3 {[%emt 0:00:15]} 81. Rc2 {[%emt 0:00:28]} Qg1 {[%emt 0:00:35]} 82. Qg4 {[%emt 0:00:41]} Qf1 {[%emt 0:03:26]} 83. Qg3+ {[%emt 0:00:32]} Qf3 {[%emt 0:00:30]} 84. Qe1+ {[%emt 0:00:18]} Kd3 {[%emt 0:00:32]} 85. Rd2+ {[%emt 0:00:55]} Kc4 {[%emt 0:00:06]} 86. Qe2+ {[%emt 0:00:37]} Qxe2+ {[%emt 0:00:05]} 87. Rxe2 {[%emt 0:00:03]} Kd3 {[%emt 0:00:05]} 88. Re1 {[%emt 0:00:35]} Bc3 {[%emt 0:00:38]} 89. Rf1 {[%emt 0:00:32]} Ke4 {[%emt 0:00:11]} 90. h4 {[%emt 0:00:11]} Bd4 {[%emt 0:00:52]} 91. h5 {[%emt 0:00:08]} Bc3 {[%emt 0:00:17]} 92. Kf7 {[%emt 0:00:14]} Bd2 {[%emt 0:00:25]} 93. Kg6 {[%emt 0:00:20]} Bg5 {[%emt 0:00:25]} 94. Rf8 {[%emt 0:00:10]} Bc1 {[%emt 0:00:28]} 95. Re8+ {[%emt 0:01:35]} Kd5 {[%emt 0:00:12]} 96. Kf7 {[%emt 0:00:36]} Bg5 {[%emt 0:00:55]} 97. Re6 {[%emt 0:00:43]} Bf4 {[%emt 0:01:02]} 98. Kf6 {[%emt 0:00:32]} Bc1 {[%emt 0:00:38]} 99. Re1 {[%emt 0:00:43]} Bg5+ {[%emt 0:00:09]} 100. Kf7 {[%emt 0:00:06]} Kd6 {[%emt 0:00:18]} 101. Ra1 {[%emt 0:00:18]} Bf4 {[%emt 0:00:55]} 102. Ra6+ {[%emt 0:00:24]} Ke5 {[%emt 0:00:32]} 103. Kg7 {[%emt 0:00:52]} Bd2 {[%emt 0:00:22]} 104. Ra2 {[%emt 0:00:16]} Bf4 {[%emt 0:00:19]} 105. Rf2 {[%emt 0:00:37]} Bg5 {[%emt 0:00:13]} 106. Ra2 {[%emt 0:00:24]} Bf4 {[%emt 0:00:16]} 107. Ra6 {[%emt 0:00:04]} Bd2 {[%emt 0:00:09]} 108. Rxh6 {[%emt 0:00:05]} Bxh6+ {[%emt 0:00:05]} 109. Kxh6 {[%emt 0:00:03]} Kf6 {[%emt 0:00:04]} 1/2-1/2

[Event "Israel National League 2024"]
[Site "Israel"]
[Date "2024.01.19"]
[Round "3.19"]
[White "Emanuel, Yahav"]
[Black "Levin, Guy"]
[Result "1/2-1/2"]
[ECO "B14"]
[WhiteElo "2333"]
[BlackElo "2435"]
[Annotator "RC"]
[PlyCount "103"]
[EventDate "2024.01.07"]
[EventType "team-tourn"]
[EventCountry "ISR"]
[SourceTitle "playchess.com"]
[Source "ChessBase"]
[SourceQuality "1"]
[TimeControl "40/5400+30:1800+30"]

1. e4 {[%emt 0:01:20]} c6 {[%emt 0:00:06]} 2. d4 {[%emt 0:00:37]} d5 {[%emt 0:00:07]} 3. exd5 {[%emt 0:01:07]} cxd5 {[%emt 0:00:08]} 4. c4 {[%emt 0:00:04]} Nf6 {[%emt 0:00:35]} 5. Nc3 {[%emt 0:00:04]} e6 {[%emt 0:02:42]} 6. c5 {[%emt 0:01:04]} b6 {[%emt 0:02:25]} 7. b4 {[%emt 0:01:15]} Bd7 {[%emt 0:05:14]} 8. Nf3 {[%emt 0:04:37]} bxc5 {[%emt 0:03:03]} 9. bxc5 {[%emt 0:00:10]} Nc6 {[%emt 0:00:05]} 10. Rb1 {[%emt 0:08:45]} Ne4 {[%emt 0:04:43]} 11. Nxe4 {[%emt 0:22:54]} dxe4 {[%emt 0:00:04]} 12. Ng5 {[%emt 0:04:19]} Qa5+ {[%emt 0:02:52]} 13. Bd2 {[%emt 0:04:06]} Qxa2 {[%emt 0:00:43]} 14. Nxe4 {[%emt 0:01:10]} Nxd4 {[%emt 0:16:14]} 15. Bd3 {[%emt 0:01:27]} Qd5 {[%emt 0:00:59]} 16. O-O {[%emt 0:03:33]} Bc6 {[%emt 0:02:50]} 17. Re1 {[%emt 0:06:08]} Be7 {[%emt 0:20:36]} 18. Qg4 {[%emt 0:01:55]} O-O {[%emt 0:00:57]} 19. Bc3 {[%emt 0:19:56]} Rad8 {[%emt 0:13:56]} 20. Nd6 {[%emt 0:04:37]} f5 {[%emt 0:04:21]} 21. Qg3 {[%emt 0:02:40]} Qxc5 {[%emt 0:02:16]} 22. Bxd4 {[%emt 0:04:52]} Qxd4 {[%emt 0:00:02]} 23. Nxf5 {[%emt 0:00:13]} exf5 {[%emt 0:02:36]} 24. Rxe7 {[%emt 0:00:02]} Be4 {[%emt 0:00:34]} 25. Bc4+ {[%emt 0:04:50]} Kh8 {[%emt 0:00:04]} 26. Re1 {[%emt 0:00:21]} a5 {[%emt 0:06:22]} 27. h4 {[%emt 0:00:24]} Rd7 {[%emt 0:09:26]} 28. Qe5 {[%emt 0:00:54]} Qxe5 {[%emt 0:00:00]} 29. Rxe5 {[%emt 0:00:01]} Rd4 {[%emt 0:00:00]} 30. f3 {[%emt 0:00:57]} Rxc4 {[%emt 0:00:00]} 31. fxe4 {[%emt 0:00:02]} fxe4 {[%emt 0:00:00]} 32. Rxa5 {[%emt 0:00:38]} h6 {[%emt 0:00:00]} 33. Re5 {[%emt 0:00:44]} Rf4 {[%emt 0:00:00]} 34. Re8+ {[%emt 0:00:33]} Kh7 {[%emt 0:00:00]} 35. h5 {[%emt 0:00:36]} Rg4 {[%emt 0:00:00]} 36. Re2 {[%emt 0:00:24]} Rh4 {[%emt 0:00:00]} 37. Kf2 {[%emt 0:00:36]} Rxh5 {[%emt 0:00:00]} 38. R8xe4 {[%emt 0:00:23]} Rc3 {[%emt 0:00:00]} 39. R4e3 {[%emt 0:00:39]} Rf5+ {[%emt 0:00:00]} 40. Kg1 {[%emt 0:00:21]} Rcc5 {[%emt 0:00:15]} 41. Re6 {[%emt 0:30:50]} h5 {[%emt 0:30:09]} 42. Kh2 {[%emt 0:00:00]} g6 {[%emt 0:00:00]} 43. R6e4 {[%emt 0:00:00]} Rg5 {[%emt 0:00:00]} 44. Re8 {[%emt 0:00:00]} Rgd5 {[%emt 0:00:00]} 45. R2e7+ {[%emt 0:00:00]} Kh6 {[%emt 0:00:00]} 46. Re6 {[%emt 0:00:00]} Rd4 {[%emt 0:00:00]} 47. Re4 {[%emt 0:00:00]} Rdd5 {[%emt 0:00:00]} 48. R4e6 {[%emt 0:00:00]} Rc2 {[%emt 0:00:00]} 49. Re2 {[%emt 0:00:00]} Rc3 {[%emt 0:00:00]} 50. R2e3 {[%emt 0:00:00]} Rc4 {[%emt 0:00:00]} 51. R3e4 {[%emt 0:00:00]} Rcc5 {[%emt 0:00:00]} 52. R4e6 {[%emt 0:00:00]} 1/2-1/2

[Event "Israel National League 2024"]
[Site "Israel"]
[Date "2024.01.19"]
[Round "3.20"]
[White "Gorodetzky, David"]
[Black "Tifferet, Shakked"]
[Result "1-0"]
[ECO "C67"]
[WhiteElo "2486"]
[BlackElo "2334"]
[Annotator "TA"]
[PlyCount "65"]
[EventDate "2024.01.07"]
[EventType "team-tourn"]
[EventCountry "ISR"]
[SourceTitle "playchess.com"]
[Source "ChessBase"]
[SourceQuality "1"]
[TimeControl "40/5400+30:1800+30"]

{[%evp 15,65,11,14,8,23,16,43,33,27,16,15,16,24,11,25,11,8,4,29,24,63,72,90,80,82,87,74,78,79,73,122,115,129,75,115,115,117,128,176,166,211,185,278,243,402,394,29956,29951,29983,29983,29985,1030]} 1. e4 {[%emt 0:00:04]} e5 {[%emt 0:01:09]} 2. Nf3 {[%emt 0:01:11]} Nc6 {[%emt 0:00:09]} 3. Bb5 {[%emt 0:00:40]} Nf6 {[%emt 0:00:10]} 4. O-O {[%emt 0:03:32][%cal Bh1f1,Bf1e1,Be1e5][%mdl 32]} Nxe4 {[%emt 0:00:09]} 5. Re1 {[%emt 0:00:20]} Nd6 {[%emt 0:00:07]} 6. Nxe5 {[%emt 0:01:44]} Nxe5 {[%emt 0:00:22]} 7. Rxe5+ {[%emt 0:00:03]} Be7 {[%emt 0:00:04]} 8. Bf1 {[%emt 0:01:07]} O-O {[%emt 0:00:08]} 9. Nc3 {[%emt 0:00:40] C67: Ruy Lopez: Berlin Defence: 4 0-0 Nxe4.} Bf6 {[%emt 0:02:31]} 10. Re1 {[%emt 0:07:47]} c6 {[%emt 0:00:23]} 11. d4 {[%emt 0:07:08][%cal Bd2d4,Bd4d5][%mdl 32] White is slightly better.} Re8 {[%emt 0:04:22]} 12. Bf4 {[%emt 0:05:54]} Rxe1 {[%emt 0:08:52]} 13. Qxe1 {[%emt 0:01:02]} Ne8 {[%emt 0:05:32]} 14. d5 {[%emt 0:21:25]} d6 {[%emt 0:00:32]} 15. Bd3 {[%emt 0:09:22]} Bd7 {[%emt 0:17:05] [#]} 16. Rd1 $146 {[%emt 0:05:50]} ({Predecessor:} 16. h3 Qb6 17. Rb1 Qa5 18. Qe4 g6 19. Qf3 Bg7 20. b4 Qd8 21. Bc4 Rc8 22. dxc6 Bxc6 {½-½ Adhiban,B (2683)-Jumabayev,R (2609) WchT 12th Astana 2019 (6.5)}) 16... Bg4 {[%emt 0:26:32] aiming for ...Bxc3.} 17. f3 {[%emt 0:02:43]} Bh5 {[%emt 0:01:51]} 18. dxc6 {[%emt 0:04:03]} bxc6 {[%emt 0:03:03]} 19. Qe4 {[%emt 0:00:20][%csl LRc6,LRh7]} Bg6 {[%emt 0:04:57]} 20. Qxc6 {[%emt 0:00:26]} Rc8 {[%emt 0:06:48] Black is weak on the light squares} 21. Qa6 {[%emt 0:01:01] White has more active pieces.} Rb8 {[%emt 0:11:53]} 22. Qxa7 {[%emt 0:07:17]} Rxb2 {[%emt 0:01:05] [#]} (22... Bxd3 $142 23. cxd3 (23. Rxd3 Rxb2 24. Nd5 Rxc2 $14) 23... Rxb2) 23. Ne4 $1 $16 {[%emt 0:01:16]} Be7 {[%emt 0:02:39] [#]} 24. Re1 {[%emt 0:08:13]} (24. a4 $142 $1) 24... d5 {[%emt 0:01:08] [#]} 25. Ng5 {[%emt 0:03:16][%mdl 512]} Bxg5 {[%emt 0:00:52]} 26. Bxg5 {[%emt 0:00:03]} f6 {[%emt 0:00:28]} (26... Nf6 $16) 27. Bf4 $18 {[%emt 0:01:03][%cal Bg5f4,Bf4g3,Bg3f2][%mdl 32]} Bxd3 {[%emt 0:00:34]} 28. cxd3 {[%emt 0:00:01]} h5 {[%emt 0:00:31]} (28... h6 $142 29. Qe3 Nd6) 29. h4 $40 {[%emt 0:02:06][%mdl 128] Threatens to win with a4. White has strong attack.} Rb4 {[%emt 0:00:32]} (29... g6 30. Bh6 Nc7) 30. Bg3 {[%emt 0:01:26]} Kh7 $2 {[%emt 0:00:29]} (30... Rb2 $18 31. a4 Ra2) 31. Qf7 {[%emt 0:00:14][%csl LRe8,LRh5] White mates.} Qb6+ {[%emt 0:00:31]} 32. Bf2 {[%emt 0:00:18]} Nd6 {[%emt 0:00:16]} 33. Qxh5+ {[%emt 0:00:08] Weighted Error Value: White=0.05 (flawless) /Black=0.48} 1-0

[Event "Israel National League 2024"]
[Site "Israel"]
[Date "2024.01.19"]
[Round "3.21"]
[White "Lev, Ronen"]
[Black "Grinberg, Eyal"]
[Result "1/2-1/2"]
[ECO "D35"]
[WhiteElo "2341"]
[BlackElo "2471"]
[Annotator "TA"]
[PlyCount "102"]
[EventDate "2024.01.07"]
[EventType "team-tourn"]
[EventCountry "ISR"]
[SourceTitle "playchess.com"]
[Source "ChessBase"]
[SourceQuality "1"]
[TimeControl "40/5400+30:1800+30"]

{[%evp 13,102,0,16,-11,-10,-11,-8,-12,25,-26,-30,-28,-26,-53,-53,-50,-57,-50,-50,-48,-47,-64,-55,-61,-60,-52,-50,-61,-59,-60,-28,-30,-35,-39,-35,-32,-29,-16,-29,-63,-62,-62,-73,-64,-62,-72,-36,-10,-7,-6,0,0,0,0,20,0,0,0,0,0,0,0,1,10,115,108,137,64,88,88,375,97,426,344,331,319,409,33,33,33,33,0,0,0,0,0,0,0,0,0,0]} 1. d4 {[%emt 0:00:56]} d5 {[%emt 0:05:45]} 2. c4 {[%emt 0:00:09]} c6 {[%emt 0:00:03]} 3. Nf3 {[%emt 0:00:20]} Nf6 {[%emt 0:00:06]} 4. Nc3 {[%emt 0:00:06]} e6 {[%emt 0:00:05]} 5. cxd5 {[%emt 0:01:37]} exd5 {[%emt 0:00:25]} 6. Bg5 {[%emt 0:00:06]} Bf5 {[%emt 0:05:20]} 7. e3 {[%emt 0:02:00]} Qb6 {[%emt 0:04:24]} 8. Qc1 {[%emt 0:04:17] D35: Queen's Gambit Declined: Exchange Variation.} (8. Bd3 $5 {[%cal Rd3f5]} Bg6 9. Rb1 $14) 8... Nbd7 {[%emt 0:02:54]} 9. Be2 {[%emt 0:00:16]} Bd6 {[%emt 0:00:48]} 10. O-O {[%emt 0:00:17]} Qc7 {[%emt 0:02:37]} 11. Bh4 {[%emt 0:04:29]} (11. Bf4 $142) 11... Ne4 $11 {[%emt 0:02:54] [#]} 12. a3 $146 {[%emt 0:01:46]} ({Predecessor:} 12. b4 Rc8 13. Qb2 O-O 14. Rfc1 Qb6 15. a3 Nxc3 16. Qxc3 Rfe8 17. Bd3 Be4 18. Nd2 {0-1 Atea,S (2299)-Ragheb,M (2287) EGY-chT 0708 2007 (2)}) 12... O-O {[%emt 0:05:44]} 13. Bg3 {[%emt 0:00:08]} Nxg3 {[%emt 0:03:52]} 14. hxg3 {[%emt 0:00:06]} Nf6 {[%emt 0:00:09]} 15. Nh4 {[%emt 0:00:44]} Bd7 {[%emt 0:06:28]} 16. Qc2 {[%emt 0:00:52]} Rfe8 {[%emt 0:01:38]} 17. Bd3 {[%emt 0:00:08]} g6 {[%emt 0:00:54]} 18. Rac1 {[%emt 0:01:40][%cal Oc3b5]} a6 {[%emt 0:02:04] Against Nb5} 19. Nf3 {[%emt 0:00:49]} Re7 {[%emt 0:01:16]} 20. Rfe1 {[%emt 0:02:40]} Rae8 {[%emt 0:02:45]} 21. b4 {[%emt 0:00:50]} Qb8 {[%emt 0:03:37]} 22. e4 {[%emt 0:04:22]} dxe4 {[%emt 0:00:57]} 23. Nxe4 {[%emt 0:00:02]} Nxe4 {[%emt 0:00:37]} 24. Rxe4 {[%emt 0:01:09]} Rxe4 {[%emt 0:00:05]} 25. Bxe4 {[%emt 0:00:04]} Qa7 {[%emt 0:03:52]} 26. Rd1 {[%emt 0:04:41]} a5 {[%emt 0:03:12]} 27. Ne5 {[%emt 0:14:32]} Be6 {[%emt 0:03:04]} (27... Bxe5 28. dxe5 Bg4 29. Bf3 $11) 28. Qc3 {[%emt 0:03:56]} axb4 {[%emt 0:01:17]} (28... Rd8 {seems wilder.} 29. d5 axb4 30. axb4 cxd5 31. Bxd5 Qa4) 29. axb4 {[%emt 0:00:01]} Ra8 {[%emt 0:08:29]} 30. Nd3 {[%emt 0:15:09]} Qa2 {[%emt 0:10:59]} 31. Nc5 {[%emt 0:02:08]} Bxc5 {[%emt 0:12:40]} 32. dxc5 {[%emt 0:16:21]} Qe2 {[%emt 0:00:39]} 33. Rd4 {[%emt 0:03:41]} Qa6 {[%emt 0:02:15]} 34. Qd2 {[%emt 0:01:35]} Qa1+ {[%emt 0:00:29]} 35. Kh2 {[%emt 0:00:07]} Kg7 {[%emt 0:00:51]} 36. b5 {[%emt 0:06:19]} Ra2 {[%emt 0:01:17]} 37. Qe3 {[%emt 0:01:29][%cal Oe4c6] Bxc6! would be deadly.} Qf1 {[%emt 0:03:12]} 38. bxc6 {[%emt 0:03:05]} Ra1 {[%emt 0:00:15]} (38... Rxf2 $2 39. cxb7 $18) (38... bxc6 $11 39. Rd2 (39. Bxc6 Qxf2 40. Qe5+ Qf6 $15) 39... Qc1 40. Rxa2 {[%mdl 64] Discovered Attack} Qxe3 41. fxe3 Bxa2) 39. g4 $1 $16 {[%emt 0:00:31]} bxc6 {[%emt 0:00:19]} (39... Bxg4 $2 40. cxb7 Qb5 41. Bf3 $18) (39... Re1 40. Qf4 h5 41. g5 (41. cxb7 h4 $18) 41... Qg1+ 42. Kg3 Rxe4 43. Qxe4 $18) 40. Bxc6 {[%emt 0:00:45]} (40. Rd6 $1 $16 Bxg4 41. Bxc6 (41. Kg3 Be6 $14)) 40... Re1 {[%emt 0:00:24]} 41. Qf4 {[%emt 0:08:07] Strongly threatening g5. Active counter play!} h6 {[%emt 0:07:22][%mdl 8192] [#]} (41... Qh1+ $16 42. Kg3 h5) 42. Re4 $2 {[%emt 0:01:53]} (42. Kg3 g5 43. Qf3 Qh1 $11) (42. Be4 $1 $18 {is the precise move to win.} Rd1 43. Rb4) 42... Rc1 $2 {[%emt 0:00:50][%mdl 8192]} (42... Rd1 $16 {is more resistant.}) 43. Qe5+ {[%emt 0:06:54]} Kh7 {[%emt 0:00:34] [#]} 44. Qf6 {[%emt 0:10:27] White wants to mate with Rxe6.} Qd3 {[%emt 0:12:43]} (44... Rxc5 $2 45. Rxe6 fxe6 46. Qe7+ Kh8 47. Qf8+ Kh7 48. Qe7+ Kh8 49. Qf8+ Kh7 50. Qf7+ Kh8 51. Qf6+ (51. Qxe6 Qxf2 52. Qe8+ Kh7 $11) 51... Kh7 52. Qe7+ $18 (52. Qxe6 Qxf2 53. Qe7+ Kh8 $11)) 45. Rd4 $2 {[%emt 0:03:24]} ({Less strong is} 45. Rxe6 fxe6 46. Qxe6 Qd8 47. Qf7+ Kh8 $16) (45. Re5 $18 {Be4 is the strong threat.} Qc3 46. Be4) 45... Qc3 $14 {[%emt 0:01:46]} (45... Qf1 {gets mated.} 46. Rd8 Qg1+ 47. Kg3) 46. Be4 $36 {[%emt 0:01:35][%mdl 2048] White has the initiative.} Qa1 $1 {[%emt 0:00:44]} (46... Qxc5 $2 47. Rd8 Qc7+ 48. f4 $18) (46... Rd1 $2 47. Bxg6+ Kg8 48. Rd8+ Rxd8 49. Qxc3 $18) 47. g5 {[%emt 0:03:04][%cal Oe4g6] Threatening mate with Bxg6+! The board is on fire.} hxg5 {[%emt 0:02:04] White must now prevent ...Rh1+. The position is equal.} (47... Rxc5 {leads to mate.} 48. Bxg6+ fxg6 49. Qe7+ Kh8 50. Qf8+ Kh7 51. Qxh6+ Kg8 52. Rd8+ Kf7 53. Qf8#) 48. Bxg6+ {[%emt 0:03:26]} fxg6 {[%emt 0:00:14]} 49. Qe7+ {[%emt 0:00:14]} Kh6 {[%emt 0:02:06]} 50. Qf8+ {[%emt 0:00:26]} Kh7 {[%emt 0:00:05] ( -> ...Rh1+)} 51. Qe7+ {[%emt 0:00:27]} Kh6 {[%emt 0:00:07] Weighted Error Value: White=0.29 (precise) /Black=0.26 (precise)} 1/2-1/2